fUSD/lending_fUSD_20250107
["ID","MTS","AMOUNT","RATE_DAILY","PERIOD"]
[347952860,1736239845245,-500.0,9.898e-05,2]
[347952861,1736239845255,-500.0,9.898e-05,2]
[347952863,1736239845265,-221.93017962,9.898e-05,2]
[347952865,1736239845275,-500.0,9.898e-05,2]
[347952866,1736239845284,-500.0,9.898e-05,2]
[347952867,1736239845294,-517.33796657,9.898e-05,2]
[347952868,1736239845304,-500.0,9.898e-05,2]
[347952869,1736239845314,-500.0,9.898e-05,2]
[347952870,1736239845323,-500.0,9.898e-05,2]
[347952871,1736239845333,-689.22,9.898e-05,2]
[347952872,1736239845342,-500.0,9.898e-05,2]
[347952873,1736239845351,-500.0,9.898e-05,2]
[347952874,1736239845361,-968.17,9.898e-05,2]
[347952875,1736239845374,-500.0,9.898e-05,2]
[347952876,1736239845384,-500.0,9.898e-05,2]
[347952877,1736239845394,-500.0,9.898e-05,2]
[347952878,1736239845403,-500.0,9.898e-05,2]
[347952879,1736239845413,-500.0,9.898e-05,2]
[347952880,1736239845424,-500.0,9.898e-05,2]
[347952881,1736239845434,-500.0,9.898e-05,2]
[347952882,1736239845444,-500.0,9.898e-05,2]
[347952883,1736239845453,-500.0,9.898e-05,2]
[347952884,1736239845462,-500.0,9.898e-05,2]
[347952885,1736239845472,-182.07633552,9.898e-05,2]
[347952886,1736239845481,-747.93,9.898e-05,2]
[347952887,1736239845491,-500.0,9.898e-05,2]
[347952888,1736239845500,-500.0,9.898e-05,2]
[347952889,1736239845510,-500.0,9.898e-05,2]
[347952890,1736239845519,-500.0,9.898e-05,2]
[347952891,1736239845529,-500.0,9.898e-05,2]
[347952892,1736239845538,-500.0,9.898e-05,2]
[347952893,1736239845547,-515.85181013,9.898e-05,2]
[347952894,1736239845557,-500.0,9.898e-05,2]
[347952895,1736239845567,-500.0,9.898e-05,2]
[347952896,1736239845576,-500.0,9.898e-05,2]
[347952897,1736239845587,-500.0,9.898e-05,2]
[347952898,1736239845596,-500.0,9.898e-05,2]
[347952899,1736239845605,-500.0,9.898e-05,2]
[347952900,1736239845615,-500.0,9.898e-05,2]
[347952901,1736239845624,-500.0,9.898e-05,2]
[347952902,1736239845633,-500.0,9.898e-05,2]
[347952903,1736239845643,-500.0,9.898e-05,2]
[347952904,1736239845652,-500.0,9.898e-05,2]
[347952905,1736239845662,-500.0,9.898e-05,2]
[347952906,1736239845673,-500.0,9.898e-05,2]
[347952907,1736239845683,-500.0,9.898e-05,2]
[347952908,1736239845692,-500.0,9.898e-05,2]
[347952909,1736239845702,-500.0,9.898e-05,2]
[347952910,1736239845711,-500.0,9.898e-05,2]
[347952911,1736239845721,-606.58897303,9.898e-05,2]
[347952912,1736239845730,-506.0870619,9.898e-05,2]
[347952913,1736239845739,-500.0,9.898e-05,2]
[347952914,1736239845749,-500.0,9.898e-05,2]
[347952915,1736239845759,-500.0,9.898e-05,2]
[347952916,1736239845769,-504.12861252,9.898e-05,2]
[347952917,1736239845779,-927.98,9.898e-05,2]
[347952918,1736239845788,-500.0,9.898e-05,2]
[347952919,1736239845798,-500.0,9.898e-05,2]
[347952920,1736239845807,-500.0,9.898e-05,2]
[347952921,1736239845817,-802.08,9.898e-05,2]
[347952922,1736239845826,-500.0,9.898e-05,2]
[347952923,1736239845838,-500.0,9.898e-05,2]
[347952924,1736239845848,-544.0,9.899e-05,2]
[347952925,1736239845857,-215852.62135515,9.899e-05,2]
[347952926,1736239845873,-1951.70132031,9.899e-05,2]
[347952927,1736239846349,-920.59620385,9.898e-05,2]
[347952928,1736239846408,-389.77379615,9.898e-05,2]
[347952929,1736239846417,-694.02620375,9.899e-05,2]
[347952930,1736239846430,-312.12616309,9.899e-05,2]
[347952931,1736239846448,-1191.19002,9.899e-05,2]
[347952932,1736239846463,-505.86656319,9.899e-05,2]
[347952933,1736239846474,-2863.600002,9.899e-05,2]
[347952935,1736240035751,50000.0,0.00012356,30]
[347952936,1736240185496,-150.0,8.768e-05,2]
[347952937,1736240185788,50000.0,0.00012356,30]
[347952938,1736240272090,33153.07687433,0.00012356,30]
[347952939,1736240346790,20000.0,0.0002,120]
[347952940,1736240376782,30000.0,0.0002,120]
[347952941,1736240385825,10000.0,0.00012122,24]
[347952943,1736240419526,40000.0,0.00012122,24]
[347952948,1736240516275,40000.0,0.00012122,24]
[347952949,1736240538577,2045.7373713,0.0002,120]
[347952950,1736240631420,40000.0,0.00012122,24]
[347952951,1736240641770,10000.0,0.00012122,24]
[347952952,1736240643627,10000.0,0.00012122,24]
[347952953,1736240700068,49240.0,0.00012122,24]
[347952967,1736241031719,-197.37,8.494e-05,2]
[347952968,1736241031729,-159.24,8.501e-05,2]
[347952969,1736241031739,-350.0,8.768e-05,2]
[347952970,1736241031748,-900.0,8.768e-05,2]
[347952971,1736241031757,-300.0,8.9e-05,2]
[347952972,1736241031766,-150.0,8.901e-05,2]
[347952973,1736241031775,-150.0,8.901e-05,2]
[347952974,1736241031785,-150.0,8.901e-05,2]
[347952975,1736241031795,-150.44463748,8.901e-05,2]
[347952976,1736241031804,-150.28358653,8.901e-05,2]
[347952977,1736241031813,-150.33002163,8.901e-05,2]
[347952978,1736241031823,-150.3637739,8.901e-05,2]
[347952979,1736241031832,-150.31250781,8.901e-05,2]
[347952980,1736241031841,-150.3254787,8.901e-05,2]
[347952981,1736241031851,-150.0,8.901e-05,2]
[347952982,1736241031860,-150.0,8.967e-05,2]
[347952983,1736241031869,-150.0,8.972e-05,2]
[347952984,1736241031879,-250.0,9.021e-05,2]
[347952985,1736241031888,-150.0,9.033e-05,2]
[347952986,1736241031897,-150.0,9.043e-05,2]
[347952987,1736241031907,-150.0,9.043e-05,2]
[347952988,1736241031916,-1000.0,9.074e-05,2]
[347952989,1736241031925,-612.19,9.083e-05,2]
[347952990,1736241031935,-32.26650275,9.083e-05,2]
[347952991,1736241031946,-557.33249725,9.083e-05,2]
[347952992,1736241031956,-150.0,9.099e-05,2]
[347952993,1736241031965,-621.34850275,9.1e-05,7]
[347952994,1736241031976,-378.65149525,9.1e-05,7]
[347952995,1736241031986,-150.0,9.113e-05,2]
[347952996,1736241031995,-1245.09553501,9.132e-05,2]
[347952997,1736241032010,-2128.44019897,9.132e-05,2]
[347952998,1736241032026,-1430.11950921,9.132e-05,2]
[347952999,1736241032037,-540.0,9.132e-05,2]
[347953000,1736241032048,-535.47,9.132e-05,2]
[347953001,1736241032059,-1980.12414371,9.132e-05,2]
[347953002,1736241032070,-3167.68845071,9.132e-05,2]
[347953003,1736241032083,-2900.0,9.132e-05,2]
[347953004,1736241032094,-295.49189213,9.132e-05,2]
[347953005,1736241032105,-3276.84887466,9.132e-05,2]
[347953006,1736241032116,-278.08240143,9.132e-05,2]
[347953007,1736241032128,-16834.63899417,9.132e-05,2]
[347953008,1736241032137,-150.0,9.165e-05,2]
[347953009,1736241032147,-150.0,9.184e-05,2]
[347953010,1736241032156,-150.0,9.184e-05,2]
[347953011,1736241032165,-150.0,9.231e-05,2]
[347953012,1736241032175,-150.0,9.255e-05,2]
[347953013,1736241032184,-150.0,9.297e-05,2]
[347953014,1736241032194,-166.33,9.311e-05,2]
[347953015,1736241032203,-150.0,9.325e-05,2]
[347953033,1736241032417,-150.0,9.325e-05,2]
[347953035,1736241032427,-150.0,9.363e-05,2]
[347953037,1736241032436,-150.0,9.396e-05,2]
[347953039,1736241032446,-584.213,9.41e-05,2]
[347953041,1736241032456,-150.0,9.429e-05,2]
[347953043,1736241032465,-150.0,9.467e-05,2]
[347953045,1736241032474,-150.0,9.467e-05,2]
[347953046,1736241032483,-150.0,9.495e-05,2]
[347953047,1736241032492,-150.0,9.537e-05,2]
[347953048,1736241032501,-197.37,9.556e-05,2]
[347953049,1736241032510,-150.0,9.561e-05,2]
[347953050,1736241032520,-150.0,9.608e-05,2]
[347953051,1736241032529,-150.0,9.608e-05,2]
[347953052,1736241032538,-150.0,9.627e-05,2]
[347953053,1736241032547,-150.0,9.678e-05,2]
[347953054,1736241032556,-150.0,9.693e-05,2]
[347953055,1736241032566,-5884.0516,9.699e-05,2]
[347953056,1736241032575,-543.8171,9.699e-05,2]
[347953057,1736241032584,-15009.27912643,9.7e-05,2]
[347953058,1736241032600,-1973.75557357,9.7e-05,2]
[347953059,1736241032609,-150.0,9.749e-05,2]
[347953060,1736241032618,-150.0,9.749e-05,2]
[347953061,1736241032628,-150.0,9.759e-05,2]
[347953062,1736241032637,-4006.5995,9.797e-05,2]
[347953063,1736241032646,-387.39867734,9.799e-05,2]
[347953064,1736241032657,-4331.1700254,9.799e-05,2]
[347953066,1736241037570,-3562.35329726,9.799e-05,2]
[347953067,1736241037579,-500.0,9.799e-05,2]
[347953068,1736241037589,-606.58897303,9.799e-05,2]
[347953069,1736241037598,-500.0,9.799e-05,2]
[347953070,1736241037607,-500.0,9.799e-05,2]
[347953071,1736241037616,-500.0,9.799e-05,2]
[347953072,1736241037626,-500.0,9.799e-05,2]
[347953073,1736241037635,-500.0,9.799e-05,2]
[347953074,1736241037644,-500.0,9.799e-05,2]
[347953075,1736241037653,-500.0,9.799e-05,2]
[347953076,1736241037663,-500.0,9.799e-05,2]
[347953077,1736241037672,-500.0,9.799e-05,2]
[347953078,1736241037682,-500.0,9.799e-05,2]
[347953079,1736241037691,-500.0,9.799e-05,2]
[347953080,1736241037700,-500.0,9.799e-05,2]
[347953081,1736241037710,-500.0,9.799e-05,2]
[347953082,1736241037720,-500.0,9.799e-05,2]
[347953083,1736241037730,-500.0,9.799e-05,2]
[347953084,1736241037739,-500.0,9.799e-05,2]
[347953085,1736241037748,-500.0,9.799e-05,2]
[347953086,1736241037757,-500.0,9.799e-05,2]
[347953087,1736241037766,-500.0,9.799e-05,2]
[347953088,1736241037776,-500.0,9.799e-05,2]
[347953089,1736241037785,-500.0,9.799e-05,2]
[347953090,1736241037794,-500.0,9.799e-05,2]
[347953091,1736241037803,-500.0,9.799e-05,2]
[347953092,1736241037812,-500.0,9.799e-05,2]
[347953093,1736241037821,-500.0,9.799e-05,2]
[347953094,1736241037830,-515.7,9.799e-05,2]
[347953095,1736241037839,-500.0,9.799e-05,2]
[347953096,1736241037849,-500.0,9.799e-05,2]
[347953097,1736241037858,-601.81,9.799e-05,2]
[347953098,1736241037867,-500.0,9.799e-05,2]
[347953099,1736241037876,-500.0,9.799e-05,2]
[347953100,1736241037886,-500.0,9.799e-05,2]
[347953101,1736241037895,-195.22158926,9.799e-05,2]
[347953102,1736241037907,-304.77841074,9.799e-05,2]
[347953103,1736241037916,-500.0,9.799e-05,2]
[347953104,1736241037925,-500.0,9.799e-05,2]
[347953105,1736241037936,-500.0,9.799e-05,2]
[347953106,1736241037945,-500.0,9.799e-05,2]
[347953107,1736241037954,-500.0,9.799e-05,2]
[347953108,1736241037963,-500.0,9.799e-05,2]
[347953109,1736241037973,-500.0,9.799e-05,2]
[347953110,1736241037982,-500.0,9.799e-05,2]
[347953111,1736241037991,-500.0,9.799e-05,2]
[347953112,1736241038001,-337.06267371,9.799e-05,2]
[347953114,1736241038022,-162.93732629,9.799e-05,2]
[347953116,1736241038031,-500.0,9.799e-05,2]
[347953118,1736241038040,-500.0,9.799e-05,2]
[347953120,1736241038051,-500.0,9.799e-05,2]
[347953122,1736241038060,-500.0,9.799e-05,2]
[347953124,1736241038069,-500.0,9.799e-05,2]
[347953126,1736241038079,-150.0,9.82e-05,2]
[347953127,1736241038089,-150.0,9.824e-05,2]
[347953129,1736241038099,-150.0,9.89e-05,2]
[347953131,1736241038109,-189.37821379,9.89e-05,2]
[347953134,1736241038118,-150.0,9.89e-05,2]
[347953136,1736241038128,-500.0,9.896e-05,2]
[347953137,1736241038137,-299.19,9.896e-05,2]
[347953140,1736241038147,-500.0,9.896e-05,2]
[347953141,1736241038156,-857.86,9.896e-05,2]
[347953143,1736241038166,-674.92,9.896e-05,2]
[347953145,1736241038175,-1440.2,9.896e-05,2]
[347953147,1736241038185,-810.5,9.896e-05,2]
[347953150,1736241038195,-1075.08,9.896e-05,2]
[347953151,1736241038204,-462.37342244,9.896e-05,2]
[347953154,1736241038215,-553.78657756,9.896e-05,2]
[347953156,1736241038225,-500.0,9.896e-05,2]
[347953158,1736241038234,-500.0,9.896e-05,2]
[347953160,1736241038244,-500.0,9.896e-05,2]
[347953162,1736241038253,-500.0,9.896e-05,2]
[347953164,1736241038263,-217.82700244,9.896e-05,2]
[347953166,1736241038275,-282.17299756,9.896e-05,2]
[347953168,1736241038285,-500.0,9.896e-05,2]
[347953170,1736241038294,-500.0,9.896e-05,2]
[347953172,1736241038303,-845.47,9.896e-05,2]
[347953174,1736241038313,-500.0,9.896e-05,2]
[347953176,1736241038322,-500.0,9.896e-05,2]
[347953178,1736241038331,-1228.98,9.896e-05,2]
[347953180,1736241038339,-500.0,9.896e-05,2]
[347953182,1736241038348,-500.0,9.896e-05,2]
[347953184,1736241038358,-500.0,9.896e-05,2]
[347953186,1736241038367,-500.0,9.896e-05,2]
[347953188,1736241038376,-512.50145453,9.897e-05,2]
[347953190,1736241038386,-500.0,9.897e-05,2]
[347953192,1736241038395,-175.82251148,9.897e-05,2]
[347953194,1736241038404,-500.0,9.897e-05,2]
[347953196,1736241038413,-500.0,9.897e-05,2]
[347953198,1736241038423,-500.0,9.897e-05,2]
[347953200,1736241038432,-441.96,9.897e-05,2]
[347953202,1736241038441,-500.0,9.897e-05,2]
[347953204,1736241038450,-546.5968487,9.897e-05,2]
[347953206,1736241038460,-500.0,9.897e-05,2]
[347953208,1736241038470,-500.0,9.897e-05,2]
[347953210,1736241038479,-500.0,9.897e-05,2]
[347953212,1736241038488,-500.0,9.897e-05,2]
[347953214,1736241038498,-500.0,9.897e-05,2]
[347953216,1736241038507,-500.0,9.897e-05,2]
[347953218,1736241038516,-500.0,9.897e-05,2]
[347953220,1736241038526,-500.0,9.897e-05,2]
[347953222,1736241038536,-500.0,9.897e-05,2]
[347953224,1736241038545,-500.0,9.897e-05,2]
[347953226,1736241038554,-500.0,9.897e-05,2]
[347953228,1736241038563,-326.28775105,9.897e-05,2]
[347953230,1736241038572,-209.49143247,9.897e-05,2]
[347953232,1736241038581,-500.0,9.897e-05,2]
[347953234,1736241038590,-5000.0,9.897e-05,2]
[347953236,1736241038599,-500.0,9.897e-05,2]
[347953238,1736241038609,-500.0,9.897e-05,2]
[347953240,1736241038618,-500.0,9.897e-05,2]
[347953241,1736241038628,-500.0,9.897e-05,2]
[347953243,1736241038637,-282.58,9.897e-05,2]
[347953246,1736241038647,-500.0,9.897e-05,2]
[347953247,1736241038656,-500.0,9.897e-05,2]
[347953249,1736241038665,-500.0,9.897e-05,2]
[347953251,1736241038674,-500.0,9.897e-05,2]
[347953253,1736241038684,-500.0,9.897e-05,2]
[347953255,1736241038694,-500.0,9.897e-05,2]
[347953257,1736241038703,-500.0,9.897e-05,2]
[347953259,1736241038712,-599.06,9.897e-05,2]
[347953261,1736241038722,-500.0,9.897e-05,2]
[347953263,1736241038730,-152.97997705,9.897e-05,2]
[347953265,1736241038739,-500.0,9.897e-05,2]
[347953267,1736241038749,-500.0,9.897e-05,2]
[347953269,1736241038758,-180.89,9.897e-05,2]
[347953271,1736241038767,-119.03737286,9.897e-05,2]
[347953274,1736241038780,-380.96262714,9.897e-05,2]
[347953276,1736241038789,-500.0,9.897e-05,2]
[347953277,1736241038798,-500.0,9.897e-05,2]
[347953279,1736241038808,-500.0,9.897e-05,2]
[347953281,1736241038817,-500.0,9.897e-05,2]
[347953283,1736241038827,-500.0,9.897e-05,2]
[347953286,1736241038836,-500.0,9.897e-05,2]
[347953287,1736241038846,-500.0,9.897e-05,2]
[347953290,1736241038855,-113.83141306,9.897e-05,2]
[347953292,1736241038867,-386.16858694,9.897e-05,2]
[347953294,1736241038876,-500.0,9.897e-05,2]
[347953296,1736241038885,-500.0,9.897e-05,2]
[347953298,1736241038895,-500.0,9.897e-05,2]
[347953300,1736241038904,-500.0,9.897e-05,2]
[347953302,1736241038914,-500.0,9.897e-05,2]
[347953304,1736241038923,-500.0,9.897e-05,2]
[347953306,1736241038933,-500.0,9.897e-05,2]
[347953308,1736241038942,-447.03444856,9.897e-05,2]
[347953310,1736241038955,-52.96555144,9.897e-05,2]
[347953312,1736241038964,-500.0,9.897e-05,2]
[347953314,1736241038974,-500.0,9.897e-05,2]
[347953316,1736241038983,-88.92867856,9.897e-05,2]
[347953318,1736241038995,-411.07132144,9.897e-05,2]
[347953320,1736241039004,-500.0,9.897e-05,2]
[347953322,1736241039018,-268.77867856,9.897e-05,2]
[347953324,1736241039030,-231.22132144,9.897e-05,2]
[347953326,1736241039039,-500.0,9.897e-05,2]
[347953328,1736241039048,-500.0,9.897e-05,2]
[347953330,1736241039057,-500.0,9.897e-05,2]
[347953332,1736241039066,-500.0,9.897e-05,2]
[347953334,1736241039075,-500.0,9.897e-05,2]
[347953336,1736241039085,-500.0,9.897e-05,2]
[347953338,1736241039095,-500.0,9.897e-05,2]
[347953339,1736241039104,-265.57,9.897e-05,2]
[347953341,1736241039114,-538.86,9.897e-05,2]
[347953344,1736241039123,-500.0,9.897e-05,2]
[347953345,1736241039132,-500.0,9.897e-05,2]
[347953348,1736241039141,-179.47,9.897e-05,2]
[347953349,1736241039151,-500.0,9.897e-05,2]
[347953351,1736241039160,-500.0,9.897e-05,2]
[347953354,1736241039170,-500.0,9.897e-05,2]
[347953355,1736241039179,-500.0,9.897e-05,2]
[347953358,1736241039189,-500.0,9.897e-05,2]
[347953360,1736241039199,-500.0,9.897e-05,2]
[347953362,1736241039208,-192.9365568,9.897e-05,2]
[347953364,1736241039217,-500.0,9.897e-05,2]
[347953365,1736241039226,-466.81141236,9.897e-05,2]
[347953367,1736241039236,-500.0,9.897e-05,2]
[347953369,1736241039245,-500.0,9.897e-05,2]
[347953372,1736241039254,-550.14,9.897e-05,2]
[347953374,1736241039264,-504.54,9.897e-05,2]
[347953375,1736241039274,-500.0,9.897e-05,2]
[347953377,1736241039284,-500.0,9.897e-05,2]
[347953378,1736241039293,-500.0,9.897e-05,2]
[347953380,1736241039303,-617.45,9.897e-05,2]
[347953382,1736241039313,-500.0,9.897e-05,2]
[347953383,1736241039323,-210.99585484,9.897e-05,2]
[347953384,1736241039332,-500.0,9.897e-05,2]
[347953385,1736241039341,-500.0,9.897e-05,2]
[347953386,1736241039350,-178.87,9.897e-05,2]
[347953387,1736241039360,-500.0,9.897e-05,2]
[347953388,1736241039369,-500.0,9.897e-05,2]
[347953390,1736241039379,-500.0,9.897e-05,2]
[347953391,1736241039390,-500.0,9.897e-05,2]
[347953392,1736241039400,-500.0,9.897e-05,2]
[347953393,1736241039409,-500.0,9.897e-05,2]
[347953394,1736241039418,-500.0,9.897e-05,2]
[347953395,1736241039428,-500.0,9.897e-05,2]
[347953396,1736241039439,-500.0,9.897e-05,2]
[347953397,1736241039449,-500.0,9.897e-05,2]
[347953398,1736241039459,-500.0,9.897e-05,2]
[347953399,1736241039468,-500.0,9.897e-05,2]
[347953400,1736241039477,-500.0,9.897e-05,2]
[347953401,1736241039486,-500.0,9.897e-05,2]
[347953402,1736241039495,-500.0,9.897e-05,2]
[347953403,1736241039505,-500.0,9.897e-05,2]
[347953404,1736241039514,-500.0,9.897e-05,2]
[347953405,1736241039526,-500.0,9.897e-05,2]
[347953406,1736241039536,-500.0,9.897e-05,2]
[347953407,1736241039546,-54.0064959,9.897e-05,2]
[347953408,1736241039559,-445.9935041,9.897e-05,2]
[347953409,1736241039569,-78.71716052,9.897e-05,2]
[347953410,1736241039791,-421.28283948,9.897e-05,2]
[347953411,1736241039801,-287.23290431,9.897e-05,2]
[347953412,1736241039813,-212.76709569,9.897e-05,2]
[347953413,1736241039823,-500.0,9.897e-05,2]
[347953414,1736241039833,-89.02056199,9.897e-05,2]
[347953415,1736241039902,-410.97943801,9.897e-05,2]
[347953416,1736241039911,-500.0,9.897e-05,2]
[347953417,1736241039921,-500.0,9.897e-05,2]
[347953418,1736241039931,-500.0,9.897e-05,2]
[347953419,1736241039942,-500.0,9.897e-05,2]
[347953420,1736241039952,-500.0,9.897e-05,2]
[347953421,1736241039961,-500.0,9.897e-05,2]
[347953422,1736241039970,-500.0,9.897e-05,2]
[347953423,1736241039980,-500.0,9.897e-05,2]
[347953424,1736241039989,-500.0,9.897e-05,2]
[347953425,1736241039998,-500.0,9.897e-05,2]
[347953426,1736241040010,-171.16180313,9.897e-05,2]
[347953427,1736241040019,-500.0,9.897e-05,2]
[347953428,1736241040029,-500.0,9.897e-05,2]
[347953429,1736241040039,-500.0,9.897e-05,2]
[347953430,1736241040050,-425.23070703,9.897e-05,2]
[347953431,1736241040063,-74.76929297,9.897e-05,2]
[347953432,1736241040073,-500.0,9.897e-05,2]
[347953433,1736241040083,-371.3937127,9.897e-05,2]
[347953434,1736241040102,-128.6062873,9.897e-05,2]
[347953435,1736241040111,-500.0,9.897e-05,2]
[347953436,1736241040121,-500.0,9.897e-05,2]
[347953437,1736241040131,-500.0,9.897e-05,2]
[347953438,1736241040141,-500.0,9.897e-05,2]
[347953439,1736241040150,-446.97,9.897e-05,2]
[347953440,1736241040159,-500.0,9.897e-05,2]
[347953441,1736241040169,-500.0,9.897e-05,2]
[347953442,1736241040178,-500.0,9.897e-05,2]
[347953443,1736241040188,-500.0,9.897e-05,2]
[347953444,1736241040198,-500.0,9.897e-05,2]
[347953445,1736241040208,-500.0,9.897e-05,2]
[347953446,1736241040218,-500.0,9.897e-05,2]
[347953447,1736241040228,-500.0,9.897e-05,2]
[347953448,1736241040237,-440.76,9.897e-05,2]
[347953449,1736241040247,-500.0,9.897e-05,2]
[347953450,1736241040256,-505.27492351,9.897e-05,2]
[347953451,1736241040266,-500.0,9.897e-05,2]
[347953452,1736241040275,-500.0,9.897e-05,2]
[347953453,1736241040285,-500.0,9.897e-05,2]
[347953454,1736241040294,-500.0,9.897e-05,2]
[347953455,1736241040304,-500.0,9.897e-05,2]
[347953456,1736241040314,-500.0,9.897e-05,2]
[347953457,1736241040324,-500.0,9.897e-05,2]
[347953458,1736241040334,-500.0,9.897e-05,2]
[347953459,1736241040343,-500.0,9.897e-05,2]
[347953460,1736241040352,-500.0,9.897e-05,2]
[347953461,1736241040362,-500.0,9.897e-05,2]
[347953462,1736241040372,-500.0,9.897e-05,2]
[347953463,1736241040381,-500.0,9.897e-05,2]
[347953464,1736241040391,-500.0,9.897e-05,2]
[347953465,1736241040401,-500.0,9.897e-05,2]
[347953466,1736241040410,-544.09,9.897e-05,2]
[347953467,1736241040419,-569.34,9.897e-05,2]
[347953468,1736241040429,-500.0,9.897e-05,2]
[347953469,1736241040439,-500.0,9.897e-05,2]
[347953470,1736241040449,-500.0,9.897e-05,2]
[347953471,1736241040458,-500.0,9.897e-05,2]
[347953472,1736241040467,-500.0,9.897e-05,2]
[347953473,1736241040477,-500.0,9.897e-05,2]
[347953474,1736241040486,-500.0,9.897e-05,2]
[347953475,1736241040496,-500.0,9.897e-05,2]
[347953476,1736241040506,-500.0,9.897e-05,2]
[347953477,1736241040515,-500.0,9.897e-05,2]
[347953478,1736241040525,-500.0,9.897e-05,2]
[347953479,1736241040535,-500.0,9.897e-05,2]
[347953480,1736241040545,-500.0,9.897e-05,2]
[347953481,1736241040555,-208.892991,9.897e-05,2]
[347953482,1736241040565,-500.0,9.897e-05,2]
[347953483,1736241040575,-285.48673807,9.897e-05,2]
[347953484,1736241040588,-214.51326193,9.897e-05,2]
[347953485,1736241040598,-500.0,9.897e-05,2]
[347953486,1736241040608,-500.0,9.897e-05,2]
[347953487,1736241040618,-500.0,9.897e-05,2]
[347953488,1736241040628,-292.19,9.897e-05,2]
[347953489,1736241040637,-731.92,9.897e-05,2]
[347953490,1736241040647,-286.609039,9.897e-05,2]
[347953491,1736241040657,-500.0,9.897e-05,2]
[347953492,1736241040666,-500.0,9.897e-05,2]
[347953493,1736241040675,-81.26141625,9.897e-05,2]
[347953494,1736241040851,-418.73858375,9.897e-05,2]
[347953495,1736241040871,-160.254242,9.897e-05,2]
[347953496,1736241040882,-500.0,9.897e-05,2]
[347953497,1736241040893,-155.918964,9.897e-05,2]
[347953498,1736241040902,-500.0,9.897e-05,2]
[347953499,1736241040911,-259.96327341,9.897e-05,2]
[347953500,1736241040921,-500.0,9.897e-05,2]
[347953501,1736241040931,-500.0,9.897e-05,2]
[347953502,1736241040941,-274.64261685,9.897e-05,2]
[347953503,1736241040956,-230.05583004,9.897e-05,2]
[347953504,1736241040966,-500.0,9.897e-05,2]
[347953505,1736241040975,-500.0,9.897e-05,2]
[347953506,1736241040985,-500.0,9.897e-05,2]
[347953507,1736241040995,-500.0,9.897e-05,2]
[347953508,1736241041006,-500.0,9.897e-05,2]
[347953509,1736241041017,-509.06050431,9.897e-05,2]
[347953510,1736241041027,-500.0,9.897e-05,2]
[347953511,1736241041037,-513.21,9.897e-05,2]
[347953512,1736241041047,-500.0,9.897e-05,2]
[347953513,1736241041056,-503.59328416,9.897e-05,2]
[347953514,1736241041065,-500.0,9.897e-05,2]
[347953515,1736241041076,-1006.58,9.897e-05,2]
[347953516,1736241041087,-500.0,9.897e-05,2]
[347953517,1736241041096,-1020.41,9.897e-05,2]
[347953518,1736241041106,-500.0,9.897e-05,2]
[347953519,1736241041115,-504.25399019,9.897e-05,2]
[347953520,1736241041124,-500.0,9.897e-05,2]
[347953521,1736241041135,-500.0,9.897e-05,2]
[347953522,1736241041144,-520.40382178,9.897e-05,2]
[347953523,1736241041154,-3613.81,9.897e-05,2]
[347953524,1736241041164,-500.0,9.897e-05,2]
[347953525,1736241041173,-500.0,9.897e-05,2]
[347953526,1736241041184,-500.0,9.897e-05,2]
[347953527,1736241041194,-500.0,9.897e-05,2]
[347953528,1736241041203,-500.0,9.897e-05,2]
[347953529,1736241041217,-500.0,9.897e-05,2]
[347953530,1736241041227,-500.0,9.897e-05,2]
[347953531,1736241041238,-500.0,9.897e-05,2]
[347953532,1736241041247,-500.0,9.897e-05,2]
[347953533,1736241041257,-500.0,9.897e-05,2]
[347953534,1736241041266,-502.55622211,9.897e-05,2]
[347953535,1736241041277,-500.0,9.897e-05,2]
[347953536,1736241041286,-500.0,9.897e-05,2]
[347953537,1736241041296,-500.0,9.897e-05,2]
[347953538,1736241041306,-500.0,9.897e-05,2]
[347953539,1736241041316,-500.0,9.897e-05,2]